Workbook

Sheet Disclaimer
A12: Introduction and Disclaimer

Sheet Materiality Calculator (hidden)
A1: Materiality Calculator
A3: Use this ready reckoner to plan your compliant G/D calculation.
A4: Change the green cells.
D7: Portfolio Allocation | E7: Adopted Scoring Approach
C8: Unlisted Property | D8: 0.1 | E8: Detailed | P8: Detailed
C9: Unlisted Infrastructure | D9: 0.1 | E9: Detailed | P9: Simple
C10: Alternatives | D10: 0 | E10: Simple
C11: High Duration Bonds | D11: 0.1 | E11: Simple
C12: Total Exposure | D12: =SUM(D8:D11) -> 0.3 | E12: =SUMIF(E8:E11,"=Simple",D8:D11) -> 0.1
D14: =IF(D12<=10%,"NO ISSUES APPLYING SIMPLE SCORING","CANNOT APPLY SIMPLE SCORING APPROACH TO ENTIRE PORTFOLIO WITHOUT BEING FLAGGED") -> CANNOT APPLY SIMPLE SCORING APPROACH TO ENTIRE PORTFOLIO WITHOUT BEING FLAGGED | E14: =IF(E12<=10%,"SCORING PLAN ACCEPTABLE", "SCORING PLAN REQUIRES FURTHER CHANGE TO COMPLY AND NOT BE FLAGGED") -> SCORING PLAN ACCEPTABLE

Sheet G-D Calculator (hidden)
A1: Growth / Defensive Portfolio Scoring
A2: Key | B2: Do not touch orange cells
B3: Fill in the green cells
B4: Select either Simple or detailed scoring approach
B7: Australian Equities | D7: Allocation | E7: Growth Score | F7: Defensive Exposure
C8: Australian Shares | D8: 0.25 | E8: 1 | F8: =100%-E8 -> 0
C9: Australian Small Cap Shares | D9: 0 | E9: 1 | F9: =100%-E9 -> 0
C10: Australian Micro Cap Shares | D10: 0 | E10: 1 | F10: 0
C11: Australian Low Vol Shares | D11: 0 | E11: 1 | F11: 0
C12: Australian Shares - any sector exposure | D12: 0 | E12: 1 | F12: 0
C13: Leveraged Australian Shares | D13: 0 | E13: 1.3 | F13: -0.3
C14: Other - Insert name | D14: 0 | E14: 1 | F14: 0
D15: =SUM($D$8:$D$14) -> 0.25 | E15: =IF($D$15=0,0,SUMPRODUCT($D$8:$D$14,$E$8:$E$14)/$D$15) -> 1 | F15: =IF($D$15=0,0,SUMPRODUCT($D$8:$D$14,$F$8:$F$14)/$D$15) -> 0
B18: Global Equities | D18: Allocation | E18: Growth Score | F18: Defensive Exposure
C19: Global Shares (all hedging levels) | D19: 0.25 | E19: 1 | F19: =100%-E19 -> 0
C20: Global Small Caps (all hedging levels) | D20: 0 | E20: 1 | F20: =100%-E20 -> 0
C21: Global Micro Cap Shares (all hedging levels) | D21: 0 | E21: 1 | F21: 0
C22: Global Low Vol Shares (all hedging levels) | D22: 0 | E22: 1 | F22: 0
C23: Emerging Market Shares (all hedging levels) | D23: 0 | E23: 1 | F23: 0
C24: Global Shares - any sector exposure | D24: 0 | E24: 1 | F24: 0
C25: Global Shares - any individual country | D25: 0 | E25: 1 | F25: 0
C26: Emerging Market Shares - any individual country | D26: 0 | E26: 1 | F26: 0
C27: Leveraged Global Shares | D27: 0 | E27: 1.3 | F27: -0.3
C28: Other - Insert name | D28: 0 | E28: 1 | F28: 0
D29: =SUM($D$19:$D$28) -> 0.25 | E29: =IF($D$29=0,0,SUMPRODUCT($D$19:$D$28,$E$19:$E$28)/$D$29) -> 1 | F29: =IF($D$29=0,0,SUMPRODUCT($D$19:$D$28,$F$19:$F$28)/$D$29) -> 0
B32: Australian Private Equity | D32: Allocation | E32: Growth Score | F32: Defensive Exposure
C33: Australian private equity - leveraged buyout | D33: 0 | E33: 1 | F33: =100%-E33 -> 0
C34: Australian private equity - growth equity | D34: 0 | E34: 1 | F34: =100%-E34 -> 0
C35: Australian private equity - venture capital | D35: 0 | E35: 1 | F35: 0
C36: Other - Insert name | D36: 0 | E36: 1 | F36: 0
D37: =SUM(D33:D36) -> 0 | E37: =IF($D$37=0,0,SUMPRODUCT($D$33:$D$36,$E$33:$E$36)/$D$37) -> 0 | F37: =IF($D$37=0,0,SUMPRODUCT($D$33:$D$36,$F$33:$F$36)/$D$37) -> 0
B40: Global Private Equity | D40: Allocation | E40: Growth Score | F40: Defensive Exposure
C41: Global private equity - leveraged buyout | D41: 0 | E41: 1 | F41: =100%-E41 -> 0
C42: Global private equity - growth equity | D42: 0 | E42: 1 | F42: =100%-E42 -> 0
C43: Global private equity - venture capital | D43: 0 | E43: 1 | F43: 0
C44: Other - Insert name | D44: 0 | E44: 1 | F44: 0
D45: =SUM(D41:D44) -> 0 | E45: =IF($D$45=0,0,SUMPRODUCT($D$41:$D$44,$E$41:$E$44)/$D$45) -> 0 | F45: =IF($D$45=0,0,SUMPRODUCT($D$41:$D$44,$F$41:$F$44)/$D$45) -> 0
B48: Listed Property | D48: Allocation | E48: Growth Score | F48: Defensive Exposure
C49: Australian LPT's | D49: 0 | E49: 1 | F49: =100%-E49 -> 0
C50: Global REITs | D50: 0 | E50: 1 | F50: =100%-E50 -> 0
C51: Regional REITs | D51: 0 | E51: 1 | F51: 0
C52: Other - Insert name | D52: 0 | E52: 1 | F52: 0
D53: =SUM(D49:D52) -> 0 | E53: =IF($D$53=0,0,SUMPRODUCT($D$49:$D$52,$E$49:$E$52)/$D$53) -> 0 | F53: =IF($D$53=0,0,SUMPRODUCT($D$49:$D$52,$F$49:$F$52)/$D$53) -> 0
C56: Select scoring approach for unlisted property
B57: Unlisted Property | C57: Detailed | D57: Allocation | E57: Growth Score | F57: Defensive Exposure | G57: Approach Check
C58: Australian unlisted property - simple / prescriptive | D58: 0 | E58: 0.8 | F58: =100%-E58 -> 0.2 | G58: =IF(AND($C$57="Detailed",D58<>0),"Error: If you adopt the detailed approach this cell must be zero","OK") -> OK
C59: Australian unlisted property - tier 1 risk | D59: 0.1 | E59: 0.6 | F59: =100%-E59 -> 0.4 | G59: =IF(AND($C$57="Simple",D59<>0),"Error: If you adopt the simple approach this cell must be zero","OK") -> OK
C60: Australian unlisted property - tier 2 risk | D60: 0 | E60: 1 | F60: =100%-E60 -> 0 | G60: =IF(AND($C$57="Simple",D60<>0),"Error: If you adopt the simple approach this cell must be zero","OK") -> OK
C61: Other - Australian - insert name | D61: 0 | F61: 1 | G61: =IF(AND($C$57="Simple",D61<>0),"Error: If you adopt the simple approach this cell must be zero","OK") -> OK
C62: Global unlisted property - simple / prescriptive | D62: 0 | E62: 0.8 | F62: =100%-E62 -> 0.2 | G62: =IF(AND($C$57="Detailed",D62<>0),"Error: If you adopt the detailed approach this cell must be zero","OK") -> OK
C63: Global unlisted property - tier 1 risk | D63: 0 | E63: 0.6 | F63: 0.4 | G63: =IF(AND($C$57="Simple",D63<>0),"Error: If you adopt the simple approach this cell must be zero","OK") -> OK
C64: Global unlisted property - tier 2 risk | D64: 0 | E64: 1 | F64: 0 | G64: =IF(AND($C$57="Simple",D64<>0),"Error: If you adopt the simple approach this cell must be zero","OK") -> OK
C65: Other - Global - insert name | D65: 0 | F65: 1 | G65: =IF(AND($C$57="Simple",D65<>0),"Error: If you adopt the simple approach this cell must be zero","OK") -> OK
D66: =SUM(D58:D65) -> 0.1 | E66: =IF($D$66=0,0,SUMPRODUCT($D$58:$D$65,$E$58:$E$65)/$D$66) -> 0.6 | F66: =IF($D$66=0,0,SUMPRODUCT($D$58:$D$65,$F$58:$F$65)/$D$66) -> 0.4 | G66: =COUNTIF(G58:G65,"*Error*") -> 0 | H66: errors
B69: Listed Infrastructure | D69: Allocation | E69: Growth Score | F69: Defensive Exposure
C70: Australian listed infrastructure | D70: 0 | E70: 1 | F70: =100%-E70 -> 0
C71: Global listed infrastructure | D71: 0 | E71: 1 | F71: =100%-E71 -> 0
C72: Other - Insert name | D72: 0 | E72: 1 | F72: 0
C73: Other - Insert name | D73: 0 | E73: 1 | F73: 0
D74: =SUM(D70:D73) -> 0 | E74: =IF($D$74=0,0,SUMPRODUCT($D$70:$D$73,$E$70:$E$73)/$D$74) -> 0 | F74: =IF($D$74=0,0,SUMPRODUCT($D$70:$D$73,$F$70:$F$73)/$D$74) -> 0
C77: Select scoring approach for unlisted infrastructure
B78: Unlisted Infrastructure | C78: Detailed | D78: Allocation | E78: Growth Score | F78: Defensive Exposure | G78: Approach Check
C79: Australian unlisted infrastructure - simple / prescriptive | D79: 0 | E79: 0.8 | F79: =100%-E79 -> 0.2 | G79: =IF(AND($C$78="Detailed",D79<>0),"Error: If you adopt the detailed approach this cell must be zero","OK") -> OK
C80: Australian unlisted infrastructure - tier 1 risk | D80: 0.07 | E80: 0.6 | F80: =100%-E80 -> 0.4 | G80: =IF(AND($C$78="Simple",D80<>0),"Error: If you adopt the simple approach this cell must be zero","OK") -> OK
C81: Australian unlisted infrastructure - tier 2 risk | D81: 0.03 | E81: 1 | F81: 0 | G81: =IF(AND($C$78="Simple",D81<>0),"Error: If you adopt the simple approach this cell must be zero","OK") -> OK
C82: Other - Australian - insert name | D82: 0 | F82: 1 | G82: =IF(AND($C$78="Simple",D82<>0),"Error: If you adopt the simple approach this cell must be zero","OK") -> OK
C83: Global unlisted infrastructure - simple / prescriptive | D83: 0 | E83: 0.8 | F83: 0.2 | G83: =IF(AND($C$78="Detailed",D83<>0),"Error: If you adopt the detailed approach this cell must be zero","OK") -> OK
C84: Global unlisted infrastructure - tier 1 risk | D84: 0 | E84: 0.6 | F84: 0.4 | G84: =IF(AND($C$78="Simple",D84<>0),"Error: If you adopt the simple approach this cell must be zero","OK") -> OK
C85: Global unlisted infrastructure - tier 2 risk | D85: 0 | E85: 1 | F85: 0 | G85: =IF(AND($C$78="Simple",D85<>0),"Error: If you adopt the simple approach this cell must be zero","OK") -> OK
C86: Other - Global - insert name | D86: 0 | F86: 1 | G86: =IF(AND($C$78="Simple",D86<>0),"Error: If you adopt the simple approach this cell must be zero","OK") -> OK
D87: =SUM(D79:D86) -> 0.1 | E87: =IF($D$87=0,0,SUMPRODUCT($D$79:$D$86,$E$79:$E$86)/$D$87) -> 0.72 | F87: =IF($D$87=0,0,SUMPRODUCT($D$79:$D$86,$F$79:$F$86)/$D$87) -> 0.28 | G87: =COUNTIF(G79:G86,"*Error*") -> 0 | H87: errors
C90: Select scoring approach for alternatives
B91: Alternatives | C91: Simple | D91: Allocation | E91: Growth Score | F91: Defensive Exposure | G91: Approach Check
C92: Alternatives - simple / prescriptive | D92: 0.02 | E92: 0.75 | F92: =100%-E92 -> 0.25 | G92: =IF(AND($C$91="Detailed",D92<>0),"Error: If you adopt the detailed approach this cell must be zero","OK") -> OK
C93: Emerging Markets Debt | D93: 0 | E93: 0.75 | F93: =100%-E93 -> 0.25 | G93: =IF(AND($C$91="Simple",D93<>0),"Error: If you adopt the simple approach this cell must be zero","OK") -> OK
C94: Hedge Funds | D94: 0 | E94: 0.5 | F94: 0.5 | G94: OK
C95: Alternative Risk Premia | D95: 0 | E95: 0.5 | F95: 0.5 | G95: OK
C96: Multi-Asset Funds | D96: 0 | E96: 0.75 | F96: 0.25 | G96: OK
C97: Risk Parity | D97: 0 | E97: 0.75 | F97: 0.25 | G97: OK
C98: Forestry | D98: 0 | E98: 0.75 | F98: 0.25 | G98: OK
C99: Agriculture | D99: 0 | E99: 0.75 | F99: 0.25 | G99: OK
C100: Commodities | D100: 0 | E100: 0.75 | F100: 0.25 | G100: OK
C101: Catastrophe bonds | D101: 0 | E101: 0.75 | F101: 0.25 | G101: OK
C102: Life Settlements | D102: 0 | E102: 0.75 | F102: 0.25 | G102: OK
C103: Insurance-Linked Strategies | D103: 0 | E103: 0.75 | F103: 0.25 | G103: OK
C104: Other - insert name | D104: 0 | E104: 0.75 | F104: 0.25 | G104: OK
D105: =SUM(D92:D104) -> 0.02 | E105: =IF($D$105=0,0,SUMPRODUCT($D$92:$D$104,$E$92:$E$104)/$D$105) -> 0.75 | F105: =IF($D$105=0,0,SUMPRODUCT($D$92:$D$104,$F$92:$F$104)/$D$105) -> 0.25 | G105: =COUNTIF(G92:G104,"*Error*") -> 0 | H105: errors
C108: Select scoring approach for non-index credit
B109: Credit | C109: Detailed | D109: Allocation | E109: Growth Score | F109: Defensive Exposure | G109: Approach Check
C110: Australian Investment Grade (index and less risky) | D110: 0 | E110: 0 | F110: =100%-E110 -> 1
C111: Australia - Other Credit - simple / prescriptive | D111: 0 | E111: 0.7 | F111: =100%-E111 -> 0.3 | G111: =IF(AND($C$109="Detailed",D111<>0),"Error: If you adopt the detailed approach this cell must be zero","OK") -> OK
C112: Australia - Other Credit - detailed | D112: 0 | E112: 0.5 | F112: 0.5 | G112: =IF(AND($C$109="Simple",D112<>0),"Error: If you adopt the simple approach this cell must be zero","OK") -> OK
C113: Global Investment Grade (index and less risky) | D113: 0 | E113: 0 | F113: 1
C114: Global High Yield (index) | D114: 0 | E114: 0.6 | F114: 0.4
C115: Global Bank Loans (index) | D115: 0 | E115: 0.7 | F115: 0.3
C116: Global - Other Credit - simple / prescriptive | D116: 0 | E116: 0.7 | F116: 0.3 | G116: =IF(AND($C$109="Detailed",D116<>0),"Error: If you adopt the detailed approach this cell must be zero","OK") -> OK
C117: Global - Other Credit - detailed | D117: 0 | F117: 1 | G117: =IF(AND($C$109="Simple",D117<>0),"Error: If you adopt the simple approach this cell must be zero","OK") -> OK
D118: =SUM(D110:D117) -> 0 | E118: =IF($D$118=0,0,SUMPRODUCT($D$110:$D$117,$E$110:$E$117)/$D$118) -> 0 | F118: =IF($D$118=0,0,SUMPRODUCT($D$110:$D$117,$F$110:$F$117)/$D$118) -> 0 | G118: =COUNTIF(G110:G117,"*Error*") -> 0 | H118: errors
C121: Select scoring approach for high risk fixed income
B122: Fixed Interest | C122: Detailed | D122: Allocation | E122: Growth Score | F122: Defensive Exposure | G122: Approach Check
C123: Australian Government (index) | D123: 0 | E123: 0 | F123: =100%-E123 -> 1
C124: Australian Composite (index) | D124: 0.115 | E124: 0 | F124: =100%-E124 -> 1
C125: Australian Inflation-linked (index) | D125: 0 | E125: 0 | F125: 1
C126: Australian Other - low risk | D126: 0 | E126: 0 | F126: 1
C127: Australian Other - high risk - simple / prescriptive | D127: 0 | E127: 0.7 | F127: 0.3 | G127: =IF(AND($C$122="Detailed",D127<>0),"Error: If you adopt the detailed approach this cell must be zero","OK") -> OK
C128: Australian Other - high risk - detailed | D128: 0 | F128: 1 | G128: =IF(AND($C$122="Simple",D128<>0),"Error: If you adopt the simple approach this cell must be zero","OK") -> OK
C129: Global Government (index) | D129: 0 | E129: 0 | F129: 1
C130: Global Composite (index) | D130: 0.115 | E130: 0 | F130: 1
C131: Global Inflation-linked (index) | D131: 0 | E131: 0 | F131: 1
C132: Global Other - low risk | D132: 0 | E132: 0 | F132: 1
C133: Global Other - high risk - simple / prescriptive | D133: 0 | E133: 0.7 | F133: 0.3 | G133: =IF(AND($C$122="Detailed",D133<>0),"Error: If you adopt the detailed approach this cell must be zero","OK") -> OK
C134: Global Other - high risk - detailed | D134: 0 | E134: =5/12 -> 0.4166666667 | F134: 0.5833333333 | G134: =IF(AND($C$122="Simple",D134<>0),"Error: If you adopt the simple approach this cell must be zero","OK") -> OK
D135: =SUM(D123:D134) -> 0.23 | E135: =IF($D$135=0,0,SUMPRODUCT($D$123:$D$134,$E$123:$E$134)/$D$135) -> 0 | F135: =IF($D$135=0,0,SUMPRODUCT($D$123:$D$134,$F$123:$F$134)/$D$135) -> 1 | G135: =COUNTIF(G123:G134,"*Error*") -> 0 | H135: errors
C138: Select scoring approach for enhanced cash
B139: Cash & Cash-Enhanced | C139: Detailed | D139: Allocation | E139: Growth Score | F139: Defensive Exposure | G139: Approach Check
C140: Cash at Bank | D140: 0.05 | E140: 0 | F140: =100%-E140 -> 1
C141: Bank Bills, NCD's and Term Deposits | D141: 0 | E141: 0 | F141: 1
C142: Cash enhanced strategies - simple / prescriptive | D142: 0 | E142: 0.2 | F142: 0.8 | G142: =IF(AND($C$139="Detailed",D142<>0),"Error: If you adopt the detailed approach this cell must be zero","OK") -> OK
C143: Cash enhanced strategies - detailed | D143: 0 | F143: 1 | G143: =IF(AND($C$139="Simple",D143<>0),"Error: If you adopt the simple approach this cell must be zero","OK") -> OK
D144: =SUM(D140:D143) -> 0.05 | E144: =IF($D$144=0,0,SUMPRODUCT($D$140:$D$143,$E$140:$E$143)/$D$144) -> 0 | F144: =IF($D$144=0,0,SUMPRODUCT($D$140:$D$143,$F$140:$F$143)/$D$144) -> 1 | G144: =COUNTIF(G140:G143,"*Error*") -> 0 | H144: errors
B147: Results
C148: Test: Have you applied simple / detailed approach correctly? | D148: =IF((G66+G87+G105+G118+G135+G144)>0,"No, review required", "Yes") -> Yes
C149: Compliant test: | D149: =IF(D58+D62+D79+D83+D92+D111+D116+D127+D133<=10%,"Compliant", "Not compliant: more detail required otherwise you will be flagged.") -> Compliant
C151: Exposure Check: | D151: =SUM(Aus_Eq_Ref,D29,D37,D53,D66,D74,D87,D105,D118,D135,D144) -> 1 | E151: =IF(D151<>100%,"CHECK", "") -> 
D153: Growth | E153: Defensive
C154: Growth / Defensive Score: | D154: =ROUND(Aus_Eq_Ref*E15+D29*E29+D37*E37+D45*E45+D53*E53+D66*E66+D74*E74+D87*E87+D105*E105+D118*E118+D135*E135+D144*E144,2) -> 0.65 | E154: =1-D154 -> 0.35

Sheet Categorisation - Unlisted Prop (hidden)
A1: Unlisted Property Calculator
B3: Key | C3: Do not touch orange cells
C4: Fill in the green cells
A6: Individual Property
D8: Level | E8: Comment
C9: Leverage (LVR): | D9: 0.35 | E9: =IF(D9>50%,"Failed Test A criteria",IF(D9>30%,"Failed Test B criteria","")) -> Failed Test B criteria
C10: Value-add (%1): | D10: 0.1 | E10: =IF(D10>50%,"Failed Test A criteria",IF(D10>20%,"Failed Test B criteria","")) -> 
C11: Sector exposure (%2): | D11: 0.15 | E11: =IF(D11>50%,"Failed Test A criteria",IF(D11>20%,"Failed Test B criteria","")) -> 
C13: Overall categorisation: | E13: =IF(COUNTIF(E9:E11,"Failed Test A criteria")>0,"Tier 2 Risk",IF(COUNTIF(E9:E11,"Failed Test B criteria")>1,"Tier 2 Risk", "Tier 1 Risk")) -> Tier 1 Risk
C15: 1 - value-add: non-income producing assets as a % of fund gross asset value
C16: 2 - % gross asset exposure outside of office, retail, industrial, and multi-family
C19: Portfolio Calculator | F19: Investment 1 | G19: Investment 2 | H19: Investment 3 | I19: Investment 4 | J19: Investment 5 | K19: Investment 6 | L19: Investment 7 | M19: Investment 8 | N19: Investment 9 | O19: Investment 10
E20: Position Size (% of Property Portfolio) | F20: 0.3 | G20: 0.3 | H20: 0.4 | I20: 0 | J20: 0 | K20: 0 | L20: 0 | M20: 0 | N20: 0 | O20: 0
E21: Global Exposure (position level): | F21: 0.2 | G21: 0.2 | H21: 0 | I21: 0 | J21: 0.5 | K21: 0.5 | L21: 1 | M21: 1 | N21: 0.2 | O21: 0.2
E22: Australian Exposure: | F22: =F20*(1-F21) -> 0.24 | G22: =G20*(1-G21) -> 0.24 | H22: 0.4 | I22: 0 | J22: 0 | K22: 0 | L22: 0 | M22: 0 | N22: 0 | O22: 0
E23: Global Exposure: | F23: =F20*F21 -> 0.06 | G23: =G20*G21 -> 0.06 | H23: 0 | I23: 0 | J23: 0 | K23: 0 | L23: 0 | M23: 0 | N23: 0 | O23: 0
E24: Leverage (LVR): | F24: 0.3 | G24: 0.25 | H24: 0.25 | I24: 0.2 | J24: 0.2 | K24: 0.6 | L24: 0.2 | M24: 0.3 | N24: 0.2 | O24: 0.2
E25: Value-add (%): | F25: 0.3 | G25: 0.15 | H25: 0.15 | I25: 0.5 | J25: 0.2 | K25: 0.1 | L25: 0.2 | M25: 0.2 | N25: 0.4 | O25: 0.2
E26: Sector exposure (%): | F26: 0.15 | G26: 0.15 | H26: 0.15 | I26: 0.15 | J26: 0.15 | K26: 0.15 | L26: 0.15 | M26: 0.15 | N26: 0.15 | O26: 0.15
E27: Leverage (LVR) Test: | F27: =IF(F24>50%,"Failed Test A criteria",IF(F24>30%,"Failed Test B criteria","")) ->  | G27: =IF(G24>50%,"Failed Test A criteria",IF(G24>30%,"Failed Test B criteria","")) ->  | K27: Failed Test A criteria
E28: Value-add (%) Test: | F28: =IF(F25>50%,"Failed Test A criteria",IF(F25>20%,"Failed Test B criteria","")) -> Failed Test B criteria | G28: =IF(G25>50%,"Failed Test A criteria",IF(G25>20%,"Failed Test B criteria","")) ->  | I28: Failed Test B criteria | N28: Failed Test B criteria
E29: Sector exposure Test: | F29: =IF(F26>50%,"Failed Test A criteria",IF(F26>20%,"Failed Test B criteria","")) ->  | G29: =IF(G26>50%,"Failed Test A criteria",IF(G26>20%,"Failed Test B criteria","")) -> 
E30: Overall Categorisation: | F30: =IF(COUNTIF(F26:F28,"Failed Test A criteria")>0,"Tier 2 Risk",IF(COUNTIF(F26:F28,"Failed Test B criteria")>1,"Tier 2 Risk", "Tier 1 Risk")) -> Tier 1 Risk | G30: =IF(COUNTIF(G26:G28,"Failed Test A criteria")>0,"Tier 2 Risk",IF(COUNTIF(G26:G28,"Failed Test B criteria")>1,"Tier 2 Risk", "Tier 1 Risk")) -> Tier 1 Risk | H30: Tier 1 Risk | I30: Tier 1 Risk | J30: Tier 1 Risk | K30: Tier 2 Risk | L30: Tier 1 Risk | M30: Tier 1 Risk | N30: Tier 1 Risk | O30: Tier 1 Risk
C33: Portfolio-Level Test | F33: Portfolio
E34: Position Size (% of Property Portfolio) | F34: =SUM(F20:O20) -> 1
E35: Australian Exposure: | F35: =SUM(F22:O22) -> 0.88
E36: Global Exposure: | F36: =1-F35 -> 0.12
E37: Leverage (LVR): | F37: =SUMPRODUCT(F$20:O$20,F24:O24) -> 0.265
E38: Value-add (%): | F38: =SUMPRODUCT(F$20:O$20,F25:O25) -> 0.195
E39: Sector exposure (%): | F39: 0.15
E40: Leverage (LVR) Test: | F40: =IF(F37>50%,"Failed Test A criteria",IF(F37>30%,"Failed Test B criteria","")) -> 
E41: Value-add (%) Test: | F41: =IF(F38>50%,"Failed Test A criteria",IF(F38>20%,"Failed Test B criteria","")) -> 
E42: Sector exposure Test: | F42: =IF(F39>50%,"Failed Test A criteria",IF(F39>20%,"Failed Test B criteria","")) -> 
E43: Overall Categorisation: | F43: =IF(COUNTIF(F39:F41,"Failed Test A criteria")>0,"Tier 2 Risk",IF(COUNTIF(F39:F41,"Failed Test B criteria")>1,"Tier 2 Risk", "Tier 1 Risk")) -> Tier 1 Risk
C46: Portfolio-Look Through | E46: Portfolio Check | F46: =SUM(F20:O20) -> 1
F47: Tier 1 Risk | G47: Tier 2 Risk
E48: Australian Unlisted Property: | F48: =SUMIF(F30:O30,"Tier 1 Risk",F22:O22) -> 0.88 | G48: =SUMIF(F30:O30,"Tier 2 Risk",F22:O22) -> 0
E49: Global Unlisted Property: | F49: =SUMIF(F30:O30,"Tier 1 Risk",F23:O23) -> 0.12 | G49: =SUMIF(F30:O30,"Tier 2 Risk",F23:O23) -> 0
C52: Final Score | E52: =IF($F$43="Tier 1 Risk","Entire unlisted property portfolio categorised as Tier 1 Risk","Portfolio look-through calculations apply") -> Entire unlisted property portfolio categorised as Tier 1 Risk
F54: Tier 1 Risk | G54: Tier 2 Risk
E55: Australian Unlisted Property: | F55: =IF($F$43="Tier 1 Risk",F35,F48) -> 0.88 | G55: =IF($F$43="Tier 1 Risk",0,G48) -> 0
E56: Global Unlisted Property: | F56: =IF($F$43="Tier 1 Risk",F36,F49) -> 0.12 | G56: =IF($F$43="Tier 1 Risk",0,G49) -> 0
E58: Total Portfolio Score: | F58: =SUM(F55:F56)*60%+SUM(G55:G56)*100% -> 0.6

Sheet Categorisation - Unlisted Infra (hidden)
A1: Unlisted Infrastructure Calculator
B3: Key | C3: Do not touch orange cells
C4: Fill in the green cells
A6: Individual Infrastructure
D8: Level | E8: Comment
C9: Leverage (LVR): | D9: 0.3 | E9: =IF(D9>80%,"Failed Test A criteria",IF(D9>70%,"Failed Test B criteria","")) -> 
C10: Price-based revenue exposure (%1): | D10: 0.3 | E10: =IF(D10>50%,"Failed Test A criteria",IF(D10>20%,"Failed Test B criteria","")) -> Failed Test B criteria
C11: Volume-based revenue exposure (%2): | D11: 0.25 | E11: =IF(D11>100%,"Failed Test A criteria",IF(D11>80%,"Failed Test B criteria","")) -> 
C12: Asset stage (%3): | D12: 0.2 | E12: =IF(D12>50%,"Failed Test A criteria",IF(D12>20%,"Failed Test B criteria","")) -> 
C13: Geographical exposure (%4): | D13: 0.3 | E13: =IF(D13>50%,"Failed Test A criteria",IF(D13>20%,"Failed Test B criteria","")) -> Failed Test B criteria
C15: Overall categorisation: | E15: =IF(COUNTIF(E9:E13,"Failed Test A criteria")>0,"Tier 2 Risk",IF(COUNTIF(E9:E13,"Failed Test B criteria")>1,"Tier 2 Risk", "Tier 1 Risk")) -> Tier 2 Risk
C17: 1 - Price-based revenue exposure: % of revenue sources with market-based pricing
C18: 2 - Volume-based revenue exposure: % of revenue sources with volume-based pricing (i.e. patronage)
C19: 3 - Asset stage: non-income producing investments as a % of asset / vehicle gross asset value
C20: 4 - Geographical exposure: % revenues sourced from emerging markets (defined to be members of MSCI Emerging Markets Index)
C23: Portfolio Calculator | F23: Investment 1 | G23: Investment 2 | H23: Investment 3 | I23: Investment 4 | J23: Investment 5 | K23: Investment 6 | L23: Investment 7 | M23: Investment 8 | N23: Investment 9 | O23: Investment 10
E24: Position Size (% of Infra Portfolio) | F24: 0.3 | G24: 0.3 | H24: 0.4 | I24: 0 | J24: 0 | K24: 0 | L24: 0 | M24: 0 | N24: 0 | O24: 0
E25: Global Exposure (position level): | F25: 0.2 | G25: 0.2 | H25: 0 | I25: 0 | J25: 0.5 | K25: 0.5 | L25: 1 | M25: 1 | N25: 0.2 | O25: 0.2
E26: Australian Exposure: | F26: =F24*(1-F25) -> 0.24 | G26: =G24*(1-G25) -> 0.24 | H26: 0.4 | I26: 0 | J26: 0 | K26: 0 | L26: 0 | M26: 0 | N26: 0 | O26: 0
E27: Global Exposure: | F27: =F24*F25 -> 0.06 | G27: =G24*G25 -> 0.06 | H27: 0 | I27: 0 | J27: 0 | K27: 0 | L27: 0 | M27: 0 | N27: 0 | O27: 0
E28: Leverage (LVR): | F28: 0.5 | G28: 0.6 | H28: 0.5 | I28: 0.2 | J28: 0.2 | K28: 0.6 | L28: 0.2 | M28: 0.3 | N28: 0.2 | O28: 0.2
E29: Price-based revenue exposure (%): | F29: 0.3 | G29: 0.15 | H29: 0.2 | I29: 0.5 | J29: 0.2 | K29: 0.1 | L29: 0.2 | M29: 0.2 | N29: 0.4 | O29: 0.2
E30: Volume-based revenue exposure (%): | F30: 0.15 | G30: 0.15 | H30: 0.15 | I30: 0.15 | J30: 0.15 | K30: 0.15 | L30: 0.15 | M30: 0.15 | N30: 0.15 | O30: 0.15
E31: Asset stage (%): | F31: 0.1 | G31: 0.4 | H31: 0.15 | I31: 0.1 | J31: 0.1 | K31: 0.1 | L31: 0.1 | M31: 0.1 | N31: 0.1 | O31: 0.1
E32: Geographical exposure (%): | F32: 0.1 | G32: 0.3 | H32: 0.1 | I32: 0.1 | J32: 0.1 | K32: 0.1 | L32: 0.1 | M32: 0.1 | N32: 0.1 | O32: 0.1
E33: Leverage (LVR) Test: | F33: =IF(F28>80%,"Failed Test A criteria",IF(F28>70%,"Failed Test B criteria","")) ->  | G33: =IF(G28>80%,"Failed Test A criteria",IF(G28>70%,"Failed Test B criteria","")) -> 
E34: Price-based revenue exposure Test: | F34: =IF(F29>50%,"Failed Test A criteria",IF(F29>20%,"Failed Test B criteria","")) -> Failed Test B criteria | G34: =IF(G29>50%,"Failed Test A criteria",IF(G29>20%,"Failed Test B criteria","")) ->  | I34: Failed Test B criteria | N34: Failed Test B criteria
E35: Volume-based revenue exposure Test: | F35: =IF(F30>100%,"Failed Test A criteria",IF(F30>80%,"Failed Test B criteria","")) ->  | G35: =IF(G30>100%,"Failed Test A criteria",IF(G30>80%,"Failed Test B criteria","")) -> 
E36: Asset stage Test: | F36: =IF(F31>50%,"Failed Test A criteria",IF(F31>20%,"Failed Test B criteria","")) ->  | G36: =IF(G31>50%,"Failed Test A criteria",IF(G31>20%,"Failed Test B criteria","")) -> Failed Test B criteria
E37: Geographical exposure Test: | F37: =IF(F32>50%,"Failed Test A criteria",IF(F32>20%,"Failed Test B criteria","")) ->  | G37: =IF(G32>50%,"Failed Test A criteria",IF(G32>20%,"Failed Test B criteria","")) -> Failed Test B criteria
E38: Overall Categorisation: | F38: =IF(COUNTIF(F33:F37,"Failed Test A criteria")>0,"Tier 2 Risk",IF(COUNTIF(F33:F37,"Failed Test B criteria")>1,"Tier 2 Risk", "Tier 1 Risk")) -> Tier 1 Risk | G38: =IF(COUNTIF(G33:G37,"Failed Test A criteria")>0,"Tier 2 Risk",IF(COUNTIF(G33:G37,"Failed Test B criteria")>1,"Tier 2 Risk", "Tier 1 Risk")) -> Tier 2 Risk | H38: Tier 1 Risk | I38: Tier 1 Risk | J38: Tier 1 Risk | K38: Tier 1 Risk | L38: Tier 1 Risk | M38: Tier 1 Risk | N38: Tier 1 Risk | O38: Tier 1 Risk
C41: Portfolio-Level Test | F41: Portfolio
E42: Position Size (% of Infra Portfolio) | F42: =SUM(F24:O24) -> 1
E43: Australian Exposure: | F43: =SUM(F26:O26) -> 0.88
E44: Global Exposure: | F44: =1-F43 -> 0.12
E45: Leverage (LVR): | F45: =SUMPRODUCT(F$24:O$24,F28:O28) -> 0.53
E46: Price-based revenue exposure (%): | F46: =SUMPRODUCT(F$24:O$24,F29:O29) -> 0.215
E47: Volume-based revenue exposure (%): | F47: 0.15
E48: Asset stage (%): | F48: 0.21
E49: Geographical exposure (%): | F49: 0.16
E50: Leverage (LVR) Test: | F50: =IF(F45>80%,"Failed Test A criteria",IF(F45>70%,"Failed Test B criteria","")) -> 
E51: Price-based revenue exposure Test: | F51: =IF(F46>50%,"Failed Test A criteria",IF(F46>20%,"Failed Test B criteria","")) -> Failed Test B criteria
E52: Volume-based revenue exposure Test: | F52: =IF(F47>100%,"Failed Test A criteria",IF(F47>80%,"Failed Test B criteria","")) -> 
E53: Asset stage Test: | F53: =IF(F48>50%,"Failed Test A criteria",IF(F48>20%,"Failed Test B criteria","")) -> Failed Test B criteria
E54: Geographical exposure Test: | F54: =IF(F49>50%,"Failed Test A criteria",IF(F49>20%,"Failed Test B criteria","")) -> 
E55: Overall Categorisation: | F55: =IF(COUNTIF(F50:F54,"Failed Test A criteria")>0,"Tier B Risk",IF(COUNTIF(F50:F54,"Failed Test B criteria")>1,"Tier 2 Risk", "Tier 1 Risk")) -> Tier 2 Risk
C58: Portfolio-Look Through | E58: Portfolio Check | F58: =SUM(F24:O24) -> 1
F59: Tier 1 Risk | G59: Tier 2 Risk
E60: Australian Unlisted Infrastructure: | F60: =SUMIF(F38:O38,"Tier 1 Risk",F26:O26) -> 0.64 | G60: =SUMIF(F38:O38,"Tier 2 Risk",F26:O26) -> 0.24
E61: Global Unlisted Infrastructure: | F61: =SUMIF(F38:O38,"Tier 1 Risk",F27:O27) -> 0.06 | G61: =SUMIF(F38:O38,"Tier 2 Risk",F27:O27) -> 0.06
C64: Final Score | E64: =IF($F$55="Tier 1 Risk","Entire unlisted property portfolio categorised as Tier 1 Risk","Portfolio look-through calculations apply") -> Portfolio look-through calculations apply
F66: Tier 1 Risk | G66: Tier 2 Risk
E67: Australian Unlisted Infrastructure: | F67: =IF($F$55="Tier 1 Risk",F43,F60) -> 0.64 | G67: =IF($F$55="Tier 1 Risk",0,G60) -> 0.24
E68: Global Unlisted Infrastructure: | F68: =IF($F$55="Tier 1 Risk",F44,F61) -> 0.06 | G68: =IF($F$55="Tier 1 Risk",0,G61) -> 0.06
E70: Total Portfolio Score: | F70: =SUM(F67:F68)*60%+SUM(G67:G68)*100% -> 0.72

Sheet Risk Scaling - Hedge Funds (hidden)
A1: Hedge Funds
D2: Note: this template could be applied to any other sector where risk scaling is applied.
A3: Key | B3: Do not touch orange cells
B4: Fill in the green cells
B6: Hedge Fund | C6: Position Size | D6: Strategy | E6: Volatility Expectations | F6: Drawdown Expectations | G6: Notes to Support Expectations | H6: Volatility-based Score | I6: Drawdown-based Growth Score | J6: Conservative Approach: Growth Score | K6: Final Selected Growth Score | L6: Rationale
B7: Fund 1 | C7: 0.2 | D7: Equity Market Neutral | E7: 0.1 | F7: 0.25 | G7: - Volatilty based on manager target and realised - Drawdowns less extreme that GFC history as manager has a formalised DD control strategy | H7: =E7/12% -> 0.8333333333 | I7: =F7/50% -> 0.5 | J7: =MAX(H7,I7) -> 0.8333333333 | K7: 0.8 | L7: Volatility is considered the more reliable measure and a drawdown control strategy may not work in gapping markets.
B8: Fund 2 | C8: 0.2 | D8: Multi-Strategy | E8: 0.06 | F8: 0.18 | G8: - Volatilty based on a concervative assessment of historical as manager hasn't hit targeted volatility levels - Drawdowns account for the history of correlations between sub-strategies becoming higher in a crisis environment | H8: =E8/12% -> 0.5 | I8: =F8/50% -> 0.36 | J8: =MAX(H8,I8) -> 0.5 | K8: 0.5 | L8: Volatility is considered the more conservative measure.
B9: Fund 3 | C9: 0.2 | D9: CTA | E9: 0.12 | F9: 0.35 | G9: - Volatilty based on manager target and realised - Drawdowns based on GFC history for strategy scaled to manager volatility | H9: 1 | I9: 0.7 | J9: 1 | K9: 1 | L9: Volatility is considered the more conservative measure.
B10: Fund 4 | C10: 0.2 | D10: Long-short Credit | E10: 0.07 | F10: 0.28 | G10: - Volatilty based on a concervative assessment of historical as manager hasn't hit targeted volatility levels - Drawdown accounts for experience during crisis of illiquidity | H10: 0.5833333333 | I10: 0.56 | J10: 0.5833333333 | K10: 0.6 | L10: Volatility is considered the more conservative measure.
B11: Fund 5 | C11: 0.2 | D11: Tail Risk Hedge Fund | E11: 0.1 | F11: 0.4 | G11: - Volatilty based on manager target and realised - Drawdowns based on target manager premia spend | H11: 0.8333333333 | I11: 0.8 | J11: 0.8333333333 | K11: 0 | L11: Tail risk hedge funds can be categorised as 100% D.
B14: Portfolio Check | C14: =SUM(C7:C11) -> 1
B15: Growth Score | C15: =SUMPRODUCT(C7:C11,K7:K11) -> 0.58
